fUST/lending_fUST_20240725
["ID","MTS","AMOUNT","RATE_DAILY","PERIOD"]
[333163212,1721897440494,-957.4,0.00013698,2]
[333163213,1721897440504,-500.0,0.00013698,2]
[333163214,1721897440513,-957.4,0.00013698,2]
[333163215,1721897440523,-957.4,0.00013698,2]
[333163216,1721897440533,-957.4,0.00013698,2]
[333163217,1721897440543,-957.4,0.00013698,2]
[333163218,1721897440555,-957.4,0.00013698,2]
[333163219,1721897440565,-957.4,0.00013698,2]
[333163220,1721897440575,-957.4,0.00013698,2]
[333163221,1721897440585,-957.4,0.00013698,2]
[333163222,1721897440595,-302.72671269,0.00013698,2]
[333163249,1721897445978,-500.0,0.00013698,2]
[333163251,1721897446166,-154.67328731,0.00013698,2]
[333163252,1721897446178,-957.4,0.00013698,2]
[333163255,1721897446188,-957.4,0.00013698,2]
[333163258,1721897446198,-957.4,0.00013698,2]
[333163261,1721897446208,-957.4,0.00013698,2]
[333163264,1721897446218,-957.4,0.00013698,2]
[333163265,1721897446228,-957.4,0.00013698,2]
[333163266,1721897446238,-957.4,0.00013698,2]
[333163267,1721897446249,-957.4,0.00013698,2]
[333163268,1721897446260,-957.4,0.00013698,2]
[333163269,1721897446270,-957.44,0.00013698,2]
[333163270,1721897446280,-500.0,0.00013698,2]
[333163271,1721897446290,-502.02012757,0.00013698,2]
[333163272,1721897446299,-500.0,0.00013698,2]
[333163273,1721897446309,-500.0,0.00013698,2]
[333163274,1721897446319,-500.0,0.00013698,2]
[333163275,1721897446330,-500.0,0.00013698,2]
[333163276,1721897446340,-585.45535077,0.00013698,2]
[333163277,1721897446349,-500.0,0.00013698,2]
[333163278,1721897446359,-500.0,0.00013698,2]
[333163279,1721897446368,-282.09750877,0.00013698,2]
[333163281,1721897463772,200.0,0.0001,2]
[333163284,1721897502052,208.7961263,9.999e-05,2]
[333163285,1721897506836,805.6785335,9.999e-05,2]
[333163286,1721897508048,533.38063441,9.999e-05,2]
[333163287,1721897516161,341.5748659,9.999e-05,2]
[333163288,1721897517756,531.35557493,9.999e-05,2]
[333163289,1721897518723,567.99228217,9.999e-05,2]
[333163290,1721897519060,319.40039305,9.999e-05,2]
[333163291,1721897519630,519.06293676,9.999e-05,2]
[333163292,1721897520635,403.25052629,9.999e-05,2]
[333163293,1721897521241,209.5814502,9.999e-05,2]
[333163294,1721897522027,234.17486227,9.999e-05,2]
[333163295,1721897524075,180.22904215,9.999e-05,2]
[333163296,1721897525545,156.65797586,9.999e-05,2]
[333163297,1721897525578,460.07074342,9.999e-05,2]
[333163298,1721897525966,159.94850941,9.999e-05,2]
[333163299,1721897526295,333.93120663,9.999e-05,2]
[333163301,1721897529633,778.87203636,9.999e-05,2]
[333163302,1721897530076,155.02715902,9.999e-05,2]
[333163303,1721897535516,600.24609405,9.999e-05,2]
[333163304,1721897536151,156.51893246,9.999e-05,2]
[333163305,1721897536655,200.0,0.0001,2]
[333163306,1721897539031,731.30595831,9.999e-05,2]
[333163307,1721897541268,726.64238482,9.999e-05,2]
[333163309,1721897594569,848.37789621,9.999e-05,2]
[333163310,1721897607695,200.0,0.0001,2]
[333163311,1721897613237,162.84649757,9.999e-05,2]
[333163312,1721897641125,156.01079347,9.999e-05,2]
[333163313,1721897675549,200.0,0.0001,2]
[333163315,1721897743718,200.0,0.0001,2]
[333163316,1721897748172,154.79103211,9.999e-05,2]
[333163317,1721897758870,154.79103211,9.999e-05,2]
[333163318,1721897759892,154.79103211,9.999e-05,2]
[333163319,1721897776263,154.79103211,9.999e-05,2]
[333163320,1721897813750,200.0,0.0001,2]
[333163341,1721897820405,160.0,0.00014243,6]
[333163342,1721897888054,200.0,0.0001,2]
[333163528,1721898633581,-300.0,0.00010958,2]
[333163529,1721898633591,-300.0,0.00010958,2]
[333163530,1721898633601,-869.13,0.00010959,2]
[333163531,1721898633611,-927.89,0.00010959,2]
[333163532,1721898633620,-773.25,0.00010959,2]
[333163533,1721898633630,-644.37,0.00010959,2]
[333163534,1721898633640,-536.98,0.00010959,2]
[333163535,1721898633650,-447.48,0.00010959,2]
[333163536,1721898633659,-372.9,0.00010959,2]
[333163537,1721898633669,-310.75,0.00010959,2]
[333163538,1721898633678,-258.96,0.00010959,2]
[333163539,1721898633688,-24900.0,0.00011012,2]
[333163540,1721898633699,-158.913044,0.00011664,2]
[333163541,1721898633708,-158.913044,0.00011696,2]
[333163542,1721898633718,-158.913044,0.00011728,2]
[333163543,1721898633728,-158.913044,0.0001176,2]
[333163544,1721898633737,-158.913044,0.00011792,2]
[333163545,1721898633747,-158.913044,0.00011824,2]
[333163546,1721898633757,-158.913044,0.00011856,2]
[333163547,1721898633766,-158.913044,0.00011888,2]
[333163548,1721898633775,-158.913044,0.0001192,2]
[333163549,1721898633784,-158.913044,0.00011952,2]
[333163550,1721898633795,-158.913044,0.00011984,2]
[333163551,1721898633804,-158.913044,0.00012016,2]
[333163552,1721898633814,-251.0,0.00012042,2]
[333163553,1721898633824,-158.913044,0.00012048,2]
[333163554,1721898633834,-420.0,0.00012054,2]
[333163555,1721898633844,-158.913044,0.0001208,2]
[333163556,1721898633853,-158.913044,0.00012112,2]
[333163557,1721898633862,-158.913044,0.00012144,2]
[333163558,1721898633872,-158.913044,0.00012176,2]
[333163559,1721898633881,-158.913044,0.00012208,2]
[333163560,1721898633891,-158.913044,0.0001224,2]
[333163561,1721898633901,-158.913044,0.00012272,2]
[333163562,1721898633910,-153.0,0.00012807,2]
[333163563,1721898633920,-3762.32067717,0.000129,2]
[333163564,1721898633930,-4000.0,0.00013,2]
[333163565,1721898633940,-3762.32067713,0.00013111,2]
[333163566,1721898633950,-587.0,0.00013259,2]
[333163567,1721898633960,-160.0,0.00013418,3]
[333163568,1721898633970,-200.0,0.00013425,2]
[333163569,1721898633979,-150.0,0.00013485,2]
[333163570,1721898633989,-367.51233122,0.00013548,2]
[333163571,1721898633999,-263.9559007,0.00013561,2]
[333163572,1721898634008,-2000.0,0.00013588,2]
[333163573,1721898634018,-803.31014905,0.00013593,2]
[333163574,1721898634028,-803.31014901,0.00013594,2]
[333163575,1721898634037,-803.31014901,0.00013596,2]
[333163576,1721898634047,-12206.02298117,0.00013596,2]
[333163577,1721898634057,-803.31014901,0.00013597,2]
[333163578,1721898634067,-2118.19803057,0.00013598,2]
[333163579,1721898634076,-803.31014901,0.00013598,2]
[333163580,1721898634086,-468.23315522,0.00013598,2]
[333163581,1721898634095,-17181.523968,0.000136,2]
[333163582,1721898634104,-150.112233,0.000136,2]
[333163583,1721898634113,-150.112233,0.000136,2]
[333163584,1721898634122,-5306.88604622,0.00013645,2]
[333163585,1721898634131,-110303.28085512,0.00013688,2]
[333163616,1721898638080,-3506.99402624,0.00013688,2]
[333163644,1721898640305,-215.8,0.00010959,2]
[333163645,1721898640314,-1315.031975,0.00013688,2]
[333163646,1721898640364,-51684.40917669,0.00013688,2]
[333163647,1721898640375,-28293.23374204,0.00013688,2]
[333163665,1721898643089,-587.7673814,0.00013563,2]
[333163666,1721898643099,-895.9530144,0.00013688,2]
[333163667,1721898643111,-12760.51980751,0.00013688,2]
[333163668,1721898643168,-3483.38346488,0.00013688,2]
[333163669,1721898643180,-89341.96,0.00013688,2]
[333163670,1721898643194,-5261.20917676,0.00013688,2]
[333163671,1721898643293,-48299.08209936,0.00013688,2]
[333163672,1721898643303,-160.0,0.00013693,4]
[333163673,1721898643314,-1436.1,0.00013698,2]
[333163674,1721898643326,-1436.1,0.00013698,2]
[333163675,1721898643337,-1436.1,0.00013698,2]
[333163676,1721898643348,-1436.1,0.00013698,2]
[333163677,1721898643357,-1436.1,0.00013698,2]
[333163678,1721898643367,-1436.1,0.00013698,2]
[333163679,1721898643377,-1436.1,0.00013698,2]
[333163680,1721898643387,-1436.1,0.00013698,2]
[333163681,1721898643400,-1436.1,0.00013698,2]
[333163682,1721898643411,-1436.1,0.00013698,2]
[333163683,1721898643421,-1436.1,0.00013698,2]
[333163684,1721898643431,-1436.1,0.00013698,2]
[333163685,1721898643440,-1436.1,0.00013698,2]
[333163686,1721898643450,-1436.1,0.00013698,2]
[333163687,1721898643462,-1436.1,0.00013698,2]
[333163688,1721898643471,-1436.1,0.00013698,2]
[333163689,1721898643480,-298.78280265,0.00013698,2]
[333163690,1721898643591,-1137.31719735,0.00013698,2]
[333163691,1721898643601,-1436.1,0.00013698,2]
[333163692,1721898643610,-1436.1,0.00013698,2]
[333163693,1721898643620,-1436.1,0.00013698,2]
[333163694,1721898643629,-1436.1,0.00013698,2]
[333163695,1721898643639,-1436.1,0.00013698,2]
[333163696,1721898643648,-1436.1,0.00013698,2]
[333163697,1721898643658,-1436.16,0.00013698,2]
[333163698,1721898643667,-226.011335,0.00013698,2]
[333163699,1721898643676,-226.011335,0.00013698,2]
[333163700,1721898643686,-226.011335,0.00013698,2]
[333163701,1721898643695,-226.011335,0.00013698,2]
[333163702,1721898643706,-226.011335,0.00013698,2]
[333163703,1721898643715,-226.011335,0.00013698,2]
[333163704,1721898643725,-226.011335,0.00013698,2]
[333163705,1721898643735,-226.011335,0.00013698,2]
[333163706,1721898643744,-110.39181053,0.00013698,2]
[333163727,1721898646276,-115.61952447,0.00013698,2]
[333163728,1721898646287,-226.011335,0.00013698,2]
[333163729,1721898646297,-537.29589309,0.00013698,2]
[333163730,1721898646309,-472.60410691,0.00013698,2]
[333163731,1721898646318,-1009.9,0.00013698,2]
[333163732,1721898646329,-1009.9,0.00013698,2]
[333163733,1721898646339,-1009.9,0.00013698,2]
[333163734,1721898646348,-1009.9,0.00013698,2]
[333163735,1721898646357,-999.19040809,0.00013698,2]
[333163736,1721898646369,-10.70959191,0.00013698,2]
[333163737,1721898646379,-951.10252132,0.00013698,2]
[333163738,1721898646394,-58.79747868,0.00013698,2]
[333163739,1721898646406,-331.63563514,0.00013698,2]
[333163742,1721898659645,273.37336231,9.9e-05,2]
[333163743,1721898668165,273.37336231,9.9e-05,2]
[333163746,1721898786916,9871.5,0.0001,2]
[333163843,1721899311156,200.0,0.0001,2]
[333163844,1721899347480,5366.28734831,0.00013799,30]
[333163845,1721899379300,200.0,0.0001,2]
[333163848,1721899447409,200.0,0.0001,2]
[333163930,1721899838470,-384.51,0.00010959,2]
[333163931,1721899838480,-48.34647337,0.00010959,2]
[333163932,1721899838493,-380.2180025,0.00010959,2]
[333163933,1721899838561,-304.67552413,0.00010959,2]
[333163934,1721899838570,-611.03,0.00010959,2]
[333163935,1721899838580,-509.19,0.00010959,2]
[333163936,1721899838590,-300.0,0.00011477,2]
[333163937,1721899838601,-24900.0,0.00011478,2]
[333163938,1721899838611,-420.0,0.00012624,2]
[333163939,1721899838620,-1204.96522355,0.000129,2]
[333163940,1721899838631,-509.97787155,0.000129,2]
[333163941,1721899838641,-2946.45414835,0.000129,2]
[333163942,1721899838651,-53883.6603574,0.0001299,2]
[333163943,1721899838661,-2000.0,0.00013,3]
[333163944,1721899838670,-77678.47918925,0.00013,2]
[333163945,1721899838680,-150.112233,0.00013,2]
[333163946,1721899838690,-153.0,0.00013,2]
[333163947,1721899838700,-1204.96522351,0.00013075,2]
[333163948,1721899838710,-2946.4541483,0.00013079,2]
[333163949,1721899838721,-150.112233,0.000131,2]
[333163950,1721899838731,-206.6937542,0.00013151,2]
[333163951,1721899838741,-150.112233,0.000132,2]
[333163952,1721899838751,-87200.11786076,0.000132,2]
[333163975,1721899840566,-424.33,0.00010959,2]
[333163976,1721899840576,-385.63960681,0.000132,2]
[333163977,1721899840587,-2214.45094639,0.000132,2]
[333163978,1721899840648,-70552.21587239,0.000132,2]
[333163979,1721899840658,-150.112233,0.000132,2]
[333163980,1721899840667,-1204.96522351,0.00013249,2]
[333163981,1721899840677,-150.112233,0.000133,2]
[333163982,1721899840686,-150.112233,0.000133,2]
[333163983,1721899840696,-150.112233,0.000134,2]
[333163984,1721899840705,-150.112233,0.000134,2]
[333163985,1721899840715,-1204.96522351,0.00013424,2]
[333163986,1721899840725,-200.0,0.00013425,2]
[333163987,1721899840735,-150.112233,0.000135,2]
[333163988,1721899840745,-150.112233,0.000135,2]
[333163989,1721899840754,-150.112233,0.000135,2]
[333163990,1721899840766,-1177.57872084,0.00013558,2]
[333163991,1721899840776,-263.9559008,0.00013561,2]
[333163992,1721899840785,-2000.0,0.00013578,2]
[333163993,1721899840794,-412.09214642,0.00013588,2]
[333163994,1721899840803,-1971.20460818,0.00013598,2]
[333163995,1721899840813,-1204.96522351,0.00013598,2]
[333163996,1721899840823,-293.9641968,0.000136,2]
[333163997,1721899840832,-293.9641968,0.000136,2]
[333163998,1721899840842,-150.112233,0.000136,2]
[333163999,1721899840851,-150.112233,0.000136,2]
[333164000,1721899840860,-367.51233122,0.00013606,2]
[333164001,1721899840870,-5306.88604622,0.00013649,2]
[333164002,1721899840880,-42497.06918125,0.00013688,2]
[333164037,1721899843535,-2000.0,0.00012,2]
[333164038,1721899843544,-150.112233,0.00013,2]
[333164039,1721899843558,-150.112233,0.000131,2]
[333164040,1721899843569,-150.112233,0.000132,2]
[333164041,1721899843579,-226921.23260575,0.00013688,2]
[333164042,1721899843588,-678.26436486,0.00013698,2]
[333164043,1721899843597,-1009.9,0.00013698,2]
[333164044,1721899843607,-1009.9,0.00013698,2]
[333164045,1721899843616,-1009.9,0.00013698,2]
[333164046,1721899843627,-1009.9,0.00013698,2]
[333164047,1721899843638,-1009.9,0.00013698,2]
[333164048,1721899843648,-1009.9,0.00013698,2]
[333164049,1721899843658,-1009.9,0.00013698,2]
[333164050,1721899843670,-1009.9,0.00013698,2]
[333164051,1721899843680,-1009.9,0.00013698,2]
[333164052,1721899843690,-1009.9,0.00013698,2]
[333164053,1721899843699,-1009.9,0.00013698,2]
[333164054,1721899843708,-1009.9,0.00013698,2]
[333164055,1721899843722,-1009.9,0.00013698,2]
[333164056,1721899843731,-1009.9,0.00013698,2]
[333164057,1721899843741,-1009.9,0.00013698,2]
[333164059,1721899843750,-1010.04671269,0.00013698,2]
[333164061,1721899843759,-500.0,0.00013698,2]
[333164063,1721899843768,-500.0,0.00013698,2]
[333164065,1721899843778,-500.0,0.00013698,2]
[333164067,1721899843787,-500.0,0.00013698,2]
[333164068,1721899843797,-500.0,0.00013698,2]
[333164069,1721899843806,-500.0,0.00013698,2]
[333164070,1721899843815,-500.0,0.00013698,2]
[333164071,1721899843824,-500.0,0.00013698,2]
[333164072,1721899843834,-500.0,0.00013698,2]
[333164073,1721899843843,-500.0,0.00013698,2]
[333164074,1721899843853,-500.0,0.00013698,2]
[333164075,1721899843862,-500.0,0.00013698,2]
[333164076,1721899843871,-500.0,0.00013698,2]
[333164077,1721899843881,-500.0,0.00013698,2]
[333164078,1721899843890,-500.0,0.00013698,2]
[333164079,1721899843899,-500.0,0.00013698,2]
[333164080,1721899843909,-500.0,0.00013698,2]
[333164081,1721899843920,-500.0,0.00013698,2]
[333164082,1721899843931,-500.0,0.00013698,2]
[333164083,1721899843942,-500.0,0.00013698,2]
[333164084,1721899843952,-500.0,0.00013698,2]
[333164085,1721899843961,-500.0,0.00013698,2]
[333164086,1721899843970,-500.0,0.00013698,2]
[333164087,1721899843981,-488.82,0.00013698,2]
[333164088,1721899843990,-151.0,0.00013698,2]
[333164089,1721899843999,-151.0,0.00013698,2]
[333164090,1721899844009,-151.0,0.00013698,2]
[333164091,1721899844018,-288.0,0.00013698,2]
[333164092,1721899844028,-500.0,0.00013698,2]
[333164093,1721899844038,-500.0,0.00013698,2]
[333164094,1721899844047,-500.0,0.00013698,2]
[333164095,1721899844056,-500.0,0.00013698,2]
[333164096,1721899844066,-500.0,0.00013698,2]
[333164097,1721899844076,-172.62393526,0.00013698,2]
[333164098,1721899844086,-151.0,0.00013698,2]
[333164099,1721899844096,-151.0,0.00013698,2]
[333164100,1721899844105,-151.0,0.00013698,2]
[333164101,1721899844295,-151.0,0.00013698,2]
[333164102,1721899844305,-505.94128905,0.00013698,2]
[333164103,1721899844316,-500.0157403,0.00013698,2]
[333164104,1721899844326,-303.47362636,0.00013698,2]
[333164105,1721899844336,-500.0,0.00013698,2]
[333164106,1721899844345,-151.0,0.00013698,2]
[333164107,1721899844355,-500.0,0.00013698,2]
[333164108,1721899844364,-500.0,0.00013698,2]
[333164109,1721899844374,-502.53402943,0.00013698,2]
[333164110,1721899844383,-500.0,0.00013698,2]
[333164111,1721899844393,-500.0,0.00013698,2]
[333164112,1721899844402,-500.0,0.00013698,2]
[333164113,1721899844411,-500.0,0.00013698,2]
[333164114,1721899844421,-500.0,0.00013698,2]
[333164115,1721899844430,-500.0,0.00013698,2]
[333164116,1721899844439,-500.0,0.00013698,2]
[333164117,1721899844449,-500.0,0.00013698,2]
[333164118,1721899844458,-786.58,0.00013698,2]
[333164119,1721899844469,-503.7113137,0.00013698,2]
[333164120,1721899844478,-551.53,0.00013698,2]
[333164121,1721899844488,-502.27811377,0.00013698,2]
[333164122,1721899844498,-500.0,0.00013698,2]
[333164123,1721899844507,-500.0,0.00013698,2]
[333164124,1721899844516,-500.0,0.00013698,2]
[333164125,1721899844526,-500.0,0.00013698,2]
[333164126,1721899844535,-500.0,0.00013698,2]
[333164127,1721899844544,-500.0,0.00013698,2]
[333164128,1721899844556,-594.71,0.00013698,2]
[333164129,1721899844566,-500.0,0.00013698,2]
[333164130,1721899844576,-500.0,0.00013698,2]
[333164131,1721899844586,-500.0,0.00013698,2]
[333164132,1721899844597,-500.0,0.00013698,2]
[333164133,1721899844606,-500.0,0.00013698,2]
[333164134,1721899844615,-505.14334552,0.00013698,2]
[333164135,1721899844625,-151.0,0.00013698,2]
[333164136,1721899844638,-500.0,0.00013698,2]
[333164137,1721899844647,-500.0,0.00013698,2]
[333164138,1721899844656,-502.78184778,0.00013698,2]
[333164139,1721899844667,-500.0,0.00013698,2]
[333164140,1721899844676,-500.0,0.00013698,2]
[333164141,1721899844686,-500.0,0.00013698,2]
[333164142,1721899844696,-500.0,0.00013698,2]
[333164143,1721899844705,-500.0,0.00013698,2]
[333164144,1721899844715,-461.39425363,0.00013698,2]
[333164145,1721899844727,-500.0,0.00013698,2]
[333164146,1721899844737,-332.29790909,0.00013698,2]
[333164147,1721899844746,-500.0,0.00013698,2]
[333164148,1721899844755,-505.62531666,0.00013698,2]
[333164149,1721899844765,-443.41683122,0.00013698,2]
[333164150,1721899844774,-500.0,0.00013698,2]
[333164151,1721899844785,-500.0,0.00013698,2]
[333164152,1721899844795,-500.0,0.00013698,2]
[333164153,1721899844804,-628.72928174,0.00013698,2]
[333164154,1721899844814,-500.0,0.00013698,2]
[333164155,1721899844824,-500.0,0.00013698,2]
[333164156,1721899844834,-500.0,0.00013698,2]
[333164157,1721899844844,-150.0,0.00013698,2]
[333164158,1721899844854,-500.0,0.00013698,2]
[333164159,1721899844864,-500.0,0.00013698,2]
[333164160,1721899844874,-500.0,0.00013698,2]
[333164161,1721899844883,-501.41812093,0.00013698,2]
[333164162,1721899844893,-418.00114681,0.00013698,2]
[333164163,1721899844903,-151.0,0.00013698,2]
[333164164,1721899844913,-151.0,0.00013698,2]
[333164165,1721899844922,-151.0,0.00013698,2]
[333164166,1721899844932,-500.0,0.00013698,2]
[333164167,1721899844942,-500.0,0.00013698,2]
[333164168,1721899844952,-571.42936053,0.00013698,2]
[333164169,1721899844962,-500.0,0.00013698,2]
[333164170,1721899844973,-500.0,0.00013698,2]
[333164171,1721899844983,-500.0,0.00013698,2]
[333164172,1721899844992,-619.07,0.00013698,2]
[333164173,1721899845002,-500.0,0.00013698,2]
[333164174,1721899845012,-500.0,0.00013698,2]
[333164175,1721899845022,-500.0,0.00013698,2]
[333164176,1721899845032,-500.0,0.00013698,2]
[333164177,1721899845042,-500.0,0.00013698,2]
[333164178,1721899845051,-1389.72,0.00013698,2]
[333164179,1721899845061,-500.0,0.00013698,2]
[333164180,1721899845072,-500.0,0.00013698,2]
[333164181,1721899845082,-151.0,0.00013698,2]
[333164182,1721899845091,-500.0,0.00013698,2]
[333164183,1721899845101,-151.0,0.00013698,2]
[333164184,1721899845111,-500.0,0.00013698,2]
[333164185,1721899845121,-151.0,0.00013698,2]
[333164186,1721899845130,-500.0,0.00013698,2]
[333164187,1721899845140,-500.0,0.00013698,2]
[333164188,1721899845149,-304.31068045,0.00013698,2]
[333164189,1721899845158,-500.0,0.00013698,2]
[333164190,1721899845168,-500.0,0.00013698,2]
[333164191,1721899845177,-500.0,0.00013698,2]
[333164192,1721899845187,-500.0,0.00013698,2]
[333164193,1721899845197,-500.0,0.00013698,2]
[333164194,1721899845206,-500.0,0.00013698,2]
[333164195,1721899845217,-500.0,0.00013698,2]
[333164196,1721899845227,-604.81717721,0.00013698,2]
[333164197,1721899845237,-500.0,0.00013698,2]
[333164198,1721899845247,-500.0,0.00013698,2]
[333164199,1721899845257,-500.0,0.00013698,2]
[333164200,1721899845266,-500.0,0.00013698,2]
[333164201,1721899845276,-500.0,0.00013698,2]
[333164202,1721899845285,-500.0,0.00013698,2]
[333164203,1721899845295,-852.6,0.00013698,2]
[333164204,1721899845305,-501.92660683,0.00013698,2]
[333164205,1721899845316,-500.0,0.00013698,2]
[333164206,1721899845325,-500.0,0.00013698,2]
[333164207,1721899845335,-500.0,0.00013698,2]
[333164208,1721899845345,-500.0,0.00013698,2]
[333164209,1721899845354,-500.0,0.00013698,2]
[333164210,1721899845364,-500.0,0.00013698,2]
[333164211,1721899845373,-500.0,0.00013698,2]
[333164212,1721899845383,-545.20733261,0.00013698,2]
[333164213,1721899845393,-500.0,0.00013698,2]
[333164214,1721899845403,-500.0,0.00013698,2]
[333164215,1721899845414,-500.0,0.00013698,2]
[333164216,1721899845424,-500.0,0.00013698,2]
[333164217,1721899845435,-500.0,0.00013698,2]
[333164218,1721899845445,-505.28259137,0.00013698,2]
[333164219,1721899845455,-500.0,0.00013698,2]
[333164220,1721899845465,-500.0,0.00013698,2]
[333164221,1721899845476,-500.0,0.00013698,2]
[333164222,1721899845487,-151.0,0.00013698,2]
[333164223,1721899845497,-151.0,0.00013698,2]
[333164224,1721899845508,-151.0,0.00013698,2]
[333164225,1721899845517,-500.0,0.00013698,2]
[333164226,1721899845527,-500.0,0.00013698,2]
[333164227,1721899845536,-500.0,0.00013698,2]
[333164228,1721899845546,-508.5780443,0.00013698,2]
[333164229,1721899845558,-500.14276985,0.00013698,2]
[333164230,1721899845567,-500.0,0.00013698,2]
[333164231,1721899845577,-500.0,0.00013698,2]
[333164232,1721899845586,-500.0,0.00013698,2]
[333164233,1721899845597,-500.0,0.00013698,2]
[333164234,1721899845606,-500.0,0.00013698,2]
[333164235,1721899845615,-500.0,0.00013698,2]
[333164236,1721899845625,-500.0,0.00013698,2]
[333164237,1721899845635,-500.0,0.00013698,2]
[333164238,1721899845646,-500.0,0.00013698,2]
[333164239,1721899845667,-500.0,0.00013698,2]
[333164240,1721899845691,-500.0,0.00013698,2]
[333164241,1721899845718,-511.8009732,0.00013698,2]
[333164242,1721899845767,-500.0,0.00013698,2]
[333164244,1721899845819,-500.0,0.00013698,2]
[333164245,1721899845831,-500.0,0.00013698,2]
[333164246,1721899845840,-939.16,0.00013698,2]
[333164247,1721899845850,-500.0,0.00013698,2]
[333164249,1721899845860,-1691.61,0.00013698,2]
[333164250,1721899845869,-500.0,0.00013698,2]
[333164251,1721899845879,-500.0,0.00013698,2]
[333164252,1721899845888,-500.0,0.00013698,2]
[333164253,1721899845897,-500.0,0.00013698,2]
[333164254,1721899845907,-500.0,0.00013698,2]
[333164255,1721899845916,-500.0,0.00013698,2]
[333164256,1721899845925,-500.0,0.00013698,2]
[333164257,1721899845935,-500.0,0.00013698,2]
[333164258,1721899845944,-826.68,0.00013698,2]
[333164259,1721899845954,-500.0,0.00013698,2]
[333164260,1721899845963,-500.0,0.00013698,2]
[333164261,1721899845972,-500.0,0.00013698,2]
[333164262,1721899845982,-500.0,0.00013698,2]
[333164263,1721899845991,-500.0,0.00013698,2]
[333164264,1721899846001,-500.0,0.00013698,2]
[333164266,1721899846011,-500.0,0.00013698,2]
[333164267,1721899846020,-500.0,0.00013698,2]
[333164268,1721899846030,-500.0,0.00013698,2]
[333164269,1721899846039,-500.0,0.00013698,2]
[333164270,1721899846049,-500.0,0.00013698,2]
[333164271,1721899846058,-500.0,0.00013698,2]
[333164272,1721899846068,-500.0,0.00013698,2]
[333164273,1721899846077,-500.0,0.00013698,2]
[333164274,1721899846087,-500.0,0.00013698,2]
[333164275,1721899846096,-500.0,0.00013698,2]
[333164278,1721899846106,-500.0,0.00013698,2]
[333164281,1721899846115,-500.0,0.00013698,2]
[333164282,1721899846125,-500.0,0.00013698,2]
[333164285,1721899846134,-500.0,0.00013698,2]
[333164288,1721899846145,-500.0,0.00013698,2]
[333164289,1721899846156,-500.0,0.00013698,2]
[333164290,1721899846166,-500.0,0.00013698,2]
[333164291,1721899846175,-571.46808504,0.00013698,2]
[333164292,1721899846186,-500.0,0.00013698,2]
[333164293,1721899846196,-500.0,0.00013698,2]
[333164294,1721899846205,-500.0,0.00013698,2]
[333164295,1721899846215,-500.0,0.00013698,2]
[333164296,1721899846226,-181.45041155,0.00013698,2]
[333164297,1721899846235,-500.0,0.00013698,2]
[333164298,1721899846244,-1619.66,0.00013698,2]
[333164299,1721899846254,-500.0,0.00013698,2]
[333164300,1721899846263,-500.0,0.00013698,2]
[333164301,1721899846273,-193.40768,0.00013698,2]
[333164302,1721899846282,-193.40768,0.00013698,2]
[333164303,1721899846292,-193.40768,0.00013698,2]
[333164304,1721899846302,-502.62402367,0.00013698,2]
[333164305,1721899846312,-193.40768,0.00013698,2]
[333164306,1721899846321,-193.40768,0.00013698,2]